fUST/lending_fUST_20250827
["ID","MTS","AMOUNT","RATE_DAILY","PERIOD"]
[381562012,1756284645593,-951.91,0.00023714,2]
[381562014,1756284645602,-3058.31046799,0.00023718,2]
[381562016,1756284645611,-500.0,0.0002372,2]
[381562018,1756284645620,-10444.4,0.00023737,2]
[381562020,1756284645631,-480.0,0.00023737,2]
[381562022,1756284645641,-5325.71,0.00023737,2]
[381562023,1756284645650,-969.69,0.00023737,2]
[381562024,1756284645659,-9340.02,0.00023737,2]
[381562025,1756284645668,-165.24187,0.00023737,7]
[381562027,1756284645678,-165.24187,0.00023737,7]
[381562029,1756284645687,-480.0,0.00023737,2]
[381562031,1756284645696,-165.24187,0.00023737,7]
[381562033,1756284645706,-1055.26907,0.00023737,7]
[381562035,1756284645715,-151.0,0.00023737,7]
[381562037,1756284645724,-165.24187,0.00023737,7]
[381562039,1756284645734,-1055.26907,0.00023737,7]
[381562041,1756284645743,-151.0,0.00023737,7]
[381562043,1756284645753,-243.464186,0.00023737,7]
[381562045,1756284645764,-1055.26907,0.00023737,7]
[381562047,1756284645773,-151.0,0.00023737,7]
[381562049,1756284645782,-151.0,0.00023737,7]
[381562051,1756284645791,-1055.26907,0.00023737,7]
[381562053,1756284645801,-243.464186,0.00023737,7]
[381562055,1756284645810,-151.0,0.00023737,7]
[381562057,1756284645819,-243.464186,0.00023737,7]
[381562060,1756284645828,-243.464186,0.00023737,7]
[381562062,1756284645838,-151.0,0.00023737,7]
[381562064,1756284645848,-151.0,0.00023737,7]
[381562066,1756284645857,-151.0,0.00023737,7]
[381562068,1756284645867,-151.0,0.00023737,7]
[381562070,1756284645876,-151.0,0.00023737,7]
[381562072,1756284645886,-1022.69,0.00023737,2]
[381562074,1756284645895,-1100.177715,0.00023737,7]
[381562076,1756284645904,-1100.177715,0.00023737,7]
[381562078,1756284645914,-1100.177715,0.00023737,7]
[381562080,1756284645923,-1100.177715,0.00023737,7]
[381562082,1756284645932,-197.051389,0.00023737,7]
[381562100,1756284646106,-197.051389,0.00023737,7]
[381562102,1756284646116,-197.051389,0.00023737,7]
[381562104,1756284646126,-2576.94,0.00023737,2]
[381562106,1756284646136,-197.051389,0.00023737,7]
[381562108,1756284646145,-151.0,0.00023737,7]
[381562110,1756284646155,-151.0,0.00023737,7]
[381562112,1756284646164,-151.785022,0.00023799,7]
[381562114,1756284646174,-151.0,0.00023799,7]
[381562116,1756284646184,-151.0,0.00023799,7]
[381562118,1756284646194,-151.0,0.00023799,7]
[381562120,1756284646203,-315.777977,0.00023799,7]
[381562122,1756284646213,-315.777977,0.00023799,7]
[381562124,1756284646222,-315.777977,0.00023799,7]
[381562126,1756284646232,-315.777977,0.00023799,7]
[381562128,1756284646241,-151.0,0.00023799,7]
[381562130,1756284646252,-151.0,0.00023799,7]
[381562133,1756284646262,-151.0,0.00023799,7]
[381562135,1756284646271,-151.0,0.00023799,7]
[381562137,1756284646280,-151.0,0.00023799,7]
[381562139,1756284646289,-151.0,0.00023799,7]
[381562141,1756284646299,-151.0,0.000238,6]
[381562143,1756284646308,-500.0,0.00023873,2]
[381562145,1756284646317,-500.0,0.00023873,2]
[381562147,1756284646327,-500.0,0.00023873,2]
[381562149,1756284646336,-151.0,0.00023873,2]
[381562151,1756284646345,-500.0,0.00023873,2]
[381562153,1756284646354,-500.0,0.00023873,2]
[381562155,1756284646363,-500.0,0.00023873,2]
[381562157,1756284646373,-500.0,0.00023873,2]
[381562159,1756284646382,-509.48151517,0.00023873,2]
[381562161,1756284646392,-500.0,0.00023873,2]
[381562162,1756284646402,-500.0,0.00023873,2]
[381562165,1756284646412,-921.31,0.0002388,3]
[381562167,1756284646422,-460.66,0.0002388,3]
[381562169,1756284646431,-230.33,0.0002388,3]
[381562170,1756284646441,-691.0,0.0002388,3]
[381562172,1756284646450,-7463.11180667,0.0002389,2]
[381562174,1756284646460,-151.0,0.0002389,7]
[381562176,1756284646469,-151.0,0.0002389,7]
[381562178,1756284646479,-151.0,0.0002389,7]
[381562181,1756284646488,-151.0,0.0002389,7]
[381562183,1756284646503,-151.0,0.0002389,7]
[381562185,1756284646513,-151.0,0.0002389,7]
[381562187,1756284646522,-151.0,0.0002389,7]
[381562189,1756284646531,-151.0,0.0002389,7]
[381562191,1756284646540,-151.0,0.0002389,7]
[381562193,1756284646550,-151.0,0.0002389,7]
[381562195,1756284646559,-189.998145,0.0002389,7]
[381562197,1756284646568,-151.0,0.0002389,7]
[381562199,1756284646577,-202.363698,0.0002389,7]
[381562201,1756284646587,-202.363698,0.0002389,7]
[381562203,1756284646597,-202.363698,0.0002389,7]
[381562205,1756284646606,-202.363698,0.0002389,7]
[381562207,1756284646615,-151.0,0.0002389,7]
[381562209,1756284646625,-151.0,0.0002389,7]
[381562211,1756284646634,-151.0,0.0002389,7]
[381562213,1756284646644,-151.0,0.0002389,7]
[381562215,1756284646653,-151.0,0.0002389,7]
[381562217,1756284646662,-151.0,0.0002389,7]
[381562219,1756284646672,-151.0,0.0002389,7]
[381562221,1756284646681,-151.0,0.0002389,7]
[381562223,1756284646691,-279.280072,0.0002389,7]
[381562225,1756284646700,-315.777977,0.0002389,7]
[381562227,1756284646710,-315.777977,0.0002389,7]
[381562228,1756284646720,-315.777977,0.0002389,7]
[381562229,1756284646729,-315.777977,0.0002389,7]
[381562231,1756284646739,-151.0,0.0002389,7]
[381562233,1756284646750,-151.0,0.0002389,7]
[381562235,1756284646759,-151.428142,0.0002389,7]
[381562237,1756284646768,-151.0,0.0002389,7]
[381562239,1756284646778,-165.24187,0.0002389,7]
[381562241,1756284646787,-165.24187,0.0002389,7]
[381562243,1756284646797,-165.24187,0.0002389,7]
[381562245,1756284646807,-1055.26907,0.0002389,7]
[381562247,1756284646817,-151.0,0.0002389,7]
[381562249,1756284646826,-165.24187,0.0002389,7]
[381562251,1756284646835,-1055.26907,0.0002389,7]
[381562253,1756284646845,-151.0,0.0002389,7]
[381562255,1756284646854,-243.464186,0.0002389,7]
[381562257,1756284646864,-1055.26907,0.0002389,7]
[381562259,1756284646874,-151.0,0.0002389,7]
[381562261,1756284646883,-151.0,0.0002389,7]
[381562263,1756284646893,-1055.26907,0.0002389,7]
[381562265,1756284646903,-243.464186,0.0002389,7]
[381562267,1756284646912,-243.464186,0.0002389,7]
[381562269,1756284646921,-243.464186,0.0002389,7]
[381562271,1756284646931,-151.0,0.0002389,7]
[381562273,1756284646940,-151.0,0.0002389,7]
[381562275,1756284646950,-151.0,0.0002389,7]
[381562278,1756284646959,-151.0,0.0002389,7]
[381562280,1756284646968,-151.0,0.0002389,7]
[381562282,1756284646978,-1100.177715,0.0002389,7]
[381562284,1756284646987,-1100.177715,0.0002389,7]
[381562286,1756284646997,-1100.177715,0.0002389,7]
[381562288,1756284647007,-1100.177715,0.0002389,7]
[381562290,1756284647016,-197.051389,0.0002389,7]
[381562292,1756284647026,-197.051389,0.0002389,7]
[381562294,1756284647035,-197.051389,0.0002389,7]
[381562296,1756284647044,-197.051389,0.0002389,7]
[381562298,1756284647053,-151.0,0.0002389,7]
[381562300,1756284647062,-151.0,0.0002389,7]
[381562302,1756284647071,-151.0,0.0002389,7]
[381562304,1756284647081,-151.0,0.0002389,7]
[381562305,1756284647092,-296.043892,0.0002389,7]
[381562307,1756284647102,-151.0,0.0002389,7]
[381562309,1756284647112,-151.0,0.0002389,7]
[381562312,1756284647122,-151.0,0.0002389,7]
[381562313,1756284647131,-151.0,0.0002389,7]
[381562315,1756284647142,-370000.0,0.0002389,2]
[381562318,1756284647151,-3058.31046799,0.00023896,2]
[381562320,1756284647161,-480.0,0.00023899,2]
[381562321,1756284647173,-1732.12,0.00023899,2]
[381562323,1756284647183,-739.39,0.00023899,2]
[381562324,1756284647193,-2321.17,0.00023899,2]
[381562325,1756284647203,-480.0,0.00023899,2]
[381562326,1756284647212,-480.0,0.00023899,2]
[381562327,1756284647222,-2303.44,0.00023899,2]
[381562328,1756284647232,-2700.34,0.00023899,2]
[381562329,1756284647241,-4014.6,0.00023899,2]
[381562330,1756284647250,-480.0,0.00023899,2]
[381562331,1756284647260,-480.0,0.00023899,2]
[381562332,1756284647269,-4501.99,0.00023899,2]
[381562333,1756284647279,-933.51,0.00023899,2]
[381562334,1756284647289,-480.0,0.00023899,2]
[381562335,1756284647298,-562.37,0.00023899,2]
[381562337,1756284647307,-5472.01,0.00023899,2]
[381562339,1756284647317,-1817.38,0.00023899,2]
[381562341,1756284647327,-721.22,0.00023899,2]
[381562343,1756284647337,-531.27,0.00023899,2]
[381562345,1756284647347,-480.0,0.00023899,2]
[381562347,1756284647357,-791.08,0.00023899,2]
[381562349,1756284647368,-151.0,0.000239,6]
[381562351,1756284647377,-1089.0,0.0002394,2]
[381562353,1756284647386,-480.0,0.00023986,2]
[381562355,1756284647395,-480.0,0.00023986,2]
[381562357,1756284647404,-480.0,0.00023986,2]
[381562359,1756284647413,-480.0,0.00023986,2]
[381562361,1756284647423,-480.0,0.00023986,2]
[381562363,1756284647432,-372.4744573,0.00023987,2]
[381562365,1756284647441,-483.26775705,0.00023987,2]
[381562367,1756284647450,-1460.05,0.00023987,2]
[381562369,1756284647459,-388.73423742,0.00023987,2]
[381562371,1756284647469,-285.79894279,0.00023987,2]
[381562373,1756284647478,-480.0,0.00023987,2]
[381562375,1756284647490,-480.0,0.00023987,2]
[381562377,1756284647500,-480.0,0.00023987,2]
[381562379,1756284647510,-480.0,0.00023987,2]
[381562381,1756284647519,-480.0,0.00023987,2]
[381562383,1756284647529,-1837.2,0.00023987,2]
[381562385,1756284647538,-605.14,0.00023987,2]
[381562387,1756284647549,-480.0,0.00023987,2]
[381562389,1756284647558,-493.22,0.00023987,2]
[381562391,1756284647567,-480.0,0.00023987,2]
[381562393,1756284647577,-756.67,0.00023987,2]
[381562395,1756284647586,-307.01026901,0.00023987,2]
[381562397,1756284647596,-480.0,0.00023987,2]
[381562399,1756284647605,-484.48,0.00023987,2]
[381562401,1756284647614,-480.0,0.00023987,2]
[381562403,1756284647624,-480.0,0.00023987,2]
[381562405,1756284647633,-480.0,0.00023987,2]
[381562407,1756284647643,-480.0,0.00023987,2]
[381562409,1756284647652,-545.31878606,0.00023987,2]
[381562411,1756284647661,-815.31,0.00023987,2]
[381562413,1756284647671,-809.93,0.00023987,2]
[381562415,1756284647680,-507.35,0.00023987,2]
[381562417,1756284647688,-2767.19,0.00023987,2]
[381562418,1756284647697,-1042.63,0.00023987,2]
[381562419,1756284647707,-480.0,0.00023987,2]
[381562420,1756284647717,-645.51,0.00023987,2]
[381562421,1756284647726,-611.26,0.00023987,2]
[381562422,1756284647735,-939.18,0.00023987,2]
[381562423,1756284647744,-809.41,0.00023987,2]
[381562424,1756284647753,-6603.54,0.00023987,2]
[381562425,1756284647762,-658.49,0.00023987,2]
[381562426,1756284647772,-480.0,0.00023987,2]
[381562427,1756284647781,-6244.01,0.00023987,2]
[381562428,1756284647791,-1384.25,0.00023987,2]
[381562429,1756284647800,-731.94,0.00023987,2]
[381562430,1756284647810,-1802.88,0.00023987,2]
[381562431,1756284647820,-480.0,0.00023987,2]
[381562432,1756284647831,-480.0,0.00023987,2]
[381562433,1756284647840,-2127.62,0.00023987,2]
[381562434,1756284647849,-933.62,0.00023987,2]
[381562435,1756284647859,-480.0,0.00023987,2]
[381562436,1756284647868,-639.21,0.00023987,2]
[381562437,1756284647878,-3109.7,0.00023987,2]
[381562438,1756284647887,-480.0,0.00023987,2]
[381562439,1756284647896,-4787.12,0.00023987,2]
[381562440,1756284647905,-480.0,0.00023987,2]
[381562441,1756284647916,-1056.71,0.00023987,2]
[381562442,1756284647925,-480.0,0.00023987,2]
[381562444,1756284647935,-480.0,0.00023987,2]
[381562445,1756284647944,-2741.24,0.00023987,2]
[381562447,1756284647954,-480.0,0.00023987,2]
[381562449,1756284647964,-1326.73,0.00023987,2]
[381562451,1756284647974,-480.0,0.00023987,2]
[381562453,1756284647983,-480.0,0.00023987,2]
[381562455,1756284647994,-1170.95,0.00023987,2]
[381562457,1756284648003,-480.0,0.00023988,2]
[381562459,1756284648012,-480.0,0.00023988,2]
[381562461,1756284648022,-831.06,0.00023988,2]
[381562463,1756284648032,-480.0,0.00023988,2]
[381562465,1756284648042,-480.0,0.00023988,2]
[381562467,1756284648052,-900.75,0.00023988,2]
[381562469,1756284648061,-480.0,0.00023988,2]
[381562471,1756284648071,-480.0,0.00023988,2]
[381562473,1756284648081,-480.0,0.00023988,2]
[381562475,1756284648095,-480.0,0.00023988,2]
[381562477,1756284648104,-797.64,0.00023988,2]
[381562479,1756284648113,-682.46,0.00023988,2]
[381562481,1756284648123,-480.0,0.00023988,2]
[381562483,1756284648132,-764.44,0.00023988,2]
[381562485,1756284648142,-500.0,0.00023988,2]
[381562487,1756284648151,-1025.99,0.00023988,2]
[381562489,1756284648161,-1041.55,0.00023988,2]
[381562491,1756284648170,-704.33,0.00023988,2]
[381562493,1756284648181,-795.25,0.00023988,2]
[381562495,1756284648190,-480.0,0.00023988,2]
[381562497,1756284648200,-568.55,0.00023988,2]
[381562499,1756284648209,-772.12,0.00023988,2]
[381562500,1756284648220,-1819.08,0.00023988,2]
[381562502,1756284648230,-647.0,0.00023988,2]
[381562504,1756284648239,-1723.3,0.00023988,2]
[381562506,1756284648251,-404.95939314,0.00023988,2]
[381562508,1756284648261,-2074.8,0.00023988,2]
[381562510,1756284648270,-621.67,0.00023988,2]
[381562512,1756284648280,-480.0,0.00023988,2]
[381562514,1756284648289,-902.12,0.00023988,2]
[381562516,1756284648299,-1017.58,0.00023988,2]
[381562518,1756284648309,-480.0,0.00023988,2]
[381562520,1756284648318,-1052.17,0.00023988,2]
[381562522,1756284648327,-1154.13,0.00023988,2]
[381562524,1756284648337,-480.0,0.00023988,2]
[381562526,1756284648347,-480.0,0.00023988,2]
[381562528,1756284648356,-480.0,0.00023988,2]
[381562530,1756284648365,-480.0,0.00023988,2]
[381562532,1756284648375,-480.0,0.00023988,2]
[381562534,1756284648384,-1174.15,0.00023988,2]
[381562536,1756284648394,-480.0,0.00023988,2]
[381562538,1756284648403,-1636.2,0.00023988,2]
[381562540,1756284648413,-715.18,0.00023988,2]
[381562542,1756284648424,-480.0,0.00023988,2]
[381562544,1756284648434,-540.26,0.00023988,2]
[381562546,1756284648444,-480.0,0.00023988,2]
[381562548,1756284648453,-480.0,0.00023988,2]
[381562550,1756284648462,-781.32,0.00023988,2]
[381562552,1756284648472,-3234.33,0.00023988,2]
[381562554,1756284648485,-480.0,0.00023988,2]
[381562556,1756284648495,-481.43916753,0.00023988,2]
[381562558,1756284648504,-480.0,0.00023988,2]
[381562560,1756284648514,-525.76,0.00023988,2]
[381562562,1756284648523,-480.0,0.00023988,2]
[381562564,1756284648532,-165.24187,0.00023988,7]
[381562566,1756284648542,-165.24187,0.00023988,7]
[381562568,1756284648552,-165.24187,0.00023988,7]
[381562570,1756284648561,-1055.26907,0.00023988,7]
[381562572,1756284648570,-151.0,0.00023988,7]
[381562574,1756284648579,-484.88,0.00023988,2]
[381562576,1756284648588,-165.24187,0.00023988,7]
[381562578,1756284648598,-1055.26907,0.00023988,7]
[381562580,1756284648607,-151.0,0.00023988,7]
[381562582,1756284648616,-243.464186,0.00023988,7]
[381562583,1756284648626,-2772.94,0.00023988,2]
[381562585,1756284648635,-1055.26907,0.00023988,7]
[381562587,1756284648644,-152.168955,0.00023988,7]
[381562588,1756284648653,-1055.26907,0.00023988,7]
[381562590,1756284648663,-243.464186,0.00023988,7]
[381562591,1756284648672,-2493.98,0.00023988,2]
[381562593,1756284648681,-243.464186,0.00023988,7]
[381562595,1756284648690,-480.0,0.00023988,2]
[381562597,1756284648699,-243.464186,0.00023988,7]
[381562599,1756284648708,-1030.73,0.00023988,2]
[381562601,1756284648718,-480.0,0.00023988,2]
[381562603,1756284648729,-3554.1,0.00023988,2]
[381562605,1756284648739,-151.0,0.00023988,7]
[381562606,1756284648749,-151.0,0.00023988,7]
[381562607,1756284648759,-1519.01,0.00023988,2]
[381562608,1756284648769,-240.53964,0.00023988,7]
[381562609,1756284648780,-480.0,0.00023988,2]
[381562610,1756284648790,-598.74,0.00023988,2]
[381562611,1756284648799,-845.79,0.00023988,2]
[381562612,1756284648809,-480.0,0.00023988,2]
[381562613,1756284648818,-480.0,0.00023988,2]
[381562614,1756284648831,-244.04453035,0.00023988,2]
[381562615,1756284648841,-480.0,0.00023988,2]
[381562616,1756284648851,-699.05,0.00023988,2]
[381562617,1756284648860,-509.04,0.00023988,2]
[381562618,1756284648869,-1100.177715,0.00023988,7]
[381562619,1756284648879,-992.31,0.00023988,2]
[381562620,1756284648890,-1100.177715,0.00023988,7]
[381562621,1756284648900,-1100.177715,0.00023988,7]
[381562622,1756284648910,-1100.177715,0.00023988,7]
[381562623,1756284648920,-197.051389,0.00023988,7]
[381562624,1756284648930,-480.0,0.00023988,2]
[381562625,1756284648940,-197.051389,0.00023988,7]
[381562626,1756284648951,-798.72,0.00023988,2]
[381562627,1756284648965,-197.051389,0.00023988,7]
[381562628,1756284648985,-197.051389,0.00023988,7]
[381562629,1756284648998,-853.39,0.00023988,2]
[381562630,1756284649008,-151.0,0.00023988,7]
[381562631,1756284649018,-1158.64,0.00023988,2]
[381562632,1756284649028,-951.91,0.00023988,2]
[381562633,1756284649038,-151.0,0.00023988,7]
[381562634,1756284649047,-156.50371735,0.00023989,3]
[381562635,1756284649057,-155.56118263,0.00023989,3]
[381562636,1756284649066,-481.93407467,0.00023989,2]
[381562637,1756284649076,-480.0,0.00023989,2]
[381562638,1756284649086,-862.88,0.00023989,2]
[381562639,1756284649102,-800.63,0.00023989,2]
[381562640,1756284649112,-1932.0,0.00023989,2]
[381562641,1756284649122,-482.34196657,0.00023989,2]
[381562642,1756284649292,-481.28556558,0.00023989,2]
[381562643,1756284649314,-480.0,0.00023989,2]
[381562644,1756284649333,-480.0,0.00023989,2]
[381562645,1756284649343,-844.47,0.00023989,2]
[381562646,1756284649352,-710.54,0.00023989,2]
[381562647,1756284649362,-480.0,0.00023989,2]
[381562648,1756284649372,-903.5,0.00023989,2]
[381562649,1756284649382,-480.0,0.00023989,2]
[381562650,1756284649391,-480.0,0.00023989,2]
[381562651,1756284649401,-1779.7,0.00023989,2]
[381562652,1756284649411,-1779.7,0.00023989,2]
[381562653,1756284649421,-1779.7,0.00023989,2]
[381562654,1756284649432,-860.61,0.00023989,2]
[381562655,1756284649442,-480.0,0.00023989,2]
[381562656,1756284649453,-659.15,0.00023989,2]
[381562657,1756284649464,-878.52,0.00023989,2]
[381562658,1756284649475,-480.0,0.00023989,2]
[381562659,1756284649486,-677.9,0.00023989,2]
[381562660,1756284649503,-529.55,0.00023989,2]
[381562661,1756284649514,-629.34,0.00023989,2]
[381562662,1756284649526,-480.0,0.00023989,2]
[381562663,1756284649536,-480.0,0.00023989,2]
[381562664,1756284649550,-480.0,0.00023989,2]
[381562665,1756284649561,-480.0,0.00023989,2]
[381562666,1756284649573,-1126.22,0.00023989,2]
[381562667,1756284649584,-480.0,0.00023989,2]
[381562668,1756284649594,-480.0,0.00023989,2]
[381562669,1756284649605,-480.0,0.00023989,2]
[381562670,1756284649615,-480.0,0.00023989,2]
[381562671,1756284649626,-731.53,0.00023989,2]
[381562672,1756284649637,-480.0,0.00023989,2]
[381562673,1756284649647,-480.0,0.00023989,2]
[381562674,1756284649658,-641.75,0.00023989,2]
[381562675,1756284649668,-480.0,0.00023989,2]
[381562676,1756284649678,-889.19,0.00023989,2]
[381562677,1756284649688,-500.0,0.00023989,2]
[381562678,1756284649698,-500.0,0.00023989,2]
[381562679,1756284649708,-1008.06,0.00023989,2]
[381562680,1756284649718,-500.0,0.00023989,2]
[381562681,1756284649728,-480.0,0.00023989,2]
[381562682,1756284649738,-480.0,0.00023989,2]
[381562683,1756284649754,-480.0,0.00023989,2]
[381562684,1756284649765,-480.0,0.00023989,2]
[381562685,1756284649775,-480.0,0.00023989,2]
[381562686,1756284649786,-480.0,0.00023989,2]
[381562687,1756284649796,-480.0,0.00023989,2]
[381562688,1756284649806,-480.0,0.00023989,2]
[381562689,1756284649816,-480.0,0.00023989,2]
[381562690,1756284649826,-480.0,0.00023989,2]
[381562691,1756284649835,-673.71,0.00023989,2]
[381562692,1756284649846,-480.0,0.00023989,2]
[381562693,1756284649856,-896.4,0.00023989,2]
[381562694,1756284649865,-891.75,0.00023989,2]
[381562695,1756284649875,-15977.42,0.00023989,2]
[381562696,1756284649885,-480.0,0.00023989,2]
[381562698,1756284649894,-480.0,0.00023989,2]
[381562700,1756284649903,-1121.12,0.00023989,2]
[381562702,1756284649913,-480.0,0.00023989,2]
[381562704,1756284649922,-480.0,0.00023989,2]
[381562706,1756284649931,-480.0,0.00023989,2]
[381562708,1756284649941,-480.0,0.00023989,2]
[381562710,1756284649950,-237.91668997,0.00023989,2]
[381562711,1756284649960,-480.0,0.00023989,2]
[381562713,1756284649970,-795.24,0.00023989,2]
[381562715,1756284649979,-1088.52,0.00023989,2]
[381562717,1756284649989,-866.69,0.00023989,2]
[381562719,1756284650003,-480.0,0.00023989,2]
[381562721,1756284650012,-151.0,0.00023989,7]
[381562723,1756284650022,-151.0,0.00023989,7]
[381562725,1756284650031,-315.777977,0.00023989,7]
[381562727,1756284650041,-480.0,0.00023989,2]
[381562729,1756284650050,-315.777977,0.00023989,7]
[381562731,1756284650059,-315.777977,0.00023989,7]
[381562733,1756284650069,-315.777977,0.00023989,7]
[381562735,1756284650078,-151.0,0.00023989,7]
[381562737,1756284650088,-151.0,0.00023989,7]
[381562739,1756284650100,-1019.34,0.00023989,2]
[381562741,1756284650109,-3283.8,0.00023989,2]
[381562743,1756284650118,-619.47,0.00023989,2]
[381562745,1756284650127,-480.0,0.00023989,2]
[381562747,1756284650136,-534.32,0.00023989,2]
[381562749,1756284650145,-151.0,0.00023989,7]
[381562751,1756284650155,-738.03,0.00023989,2]
[381562753,1756284650164,-480.0,0.00023989,2]
[381562755,1756284650173,-480.0,0.00023989,2]
[381562757,1756284650182,-867.16,0.00023989,2]
[381562759,1756284650191,-480.0,0.00023989,2]
[381562761,1756284650200,-814.29,0.00023989,2]
[381562763,1756284650210,-480.0,0.00023989,2]
[381562765,1756284650219,-976.12,0.00023989,2]
[381562767,1756284650228,-480.0,0.00023989,2]
[381562769,1756284650237,-1272.09,0.00023989,2]
[381562770,1756284650248,-480.0,0.00023989,2]
[381562772,1756284650257,-480.0,0.00023989,2]
[381562774,1756284650266,-480.0,0.00023989,2]
[381562776,1756284650275,-461.51342131,0.00023989,2]
[381562778,1756284650285,-1504.54,0.00023989,2]
[381562780,1756284650295,-524.38,0.00023989,2]
[381562782,1756284650304,-40571.54443007,0.0002399,2]
[381562783,1756284650313,-151.0,0.0002399,7]
[381562784,1756284650322,-151.0,0.0002399,7]
[381562785,1756284650331,-151.0,0.0002399,7]
[381562786,1756284650341,-275.83744,0.0002399,7]
[381562787,1756284650350,-151.0,0.0002399,7]
[381562788,1756284650359,-151.0,0.0002399,7]
[381562789,1756284650368,-151.0,0.0002399,7]
[381562790,1756284650377,-151.0,0.0002399,7]
[381562791,1756284650386,-151.0,0.0002399,7]
[381562793,1756284650396,-151.0,0.0002399,7]
[381562795,1756284650406,-202.363698,0.0002399,7]
[381562797,1756284650415,-202.363698,0.0002399,7]
[381562799,1756284650424,-202.363698,0.0002399,7]
[381562801,1756284650433,-202.363698,0.0002399,7]
[381562803,1756284650443,-151.0,0.0002399,7]
[381562805,1756284650452,-151.0,0.0002399,7]
[381562807,1756284650461,-151.0,0.0002399,7]
[381562809,1756284650470,-151.0,0.0002399,7]
[381562811,1756284650480,-151.0,0.0002399,7]
[381562813,1756284650489,-151.0,0.0002399,7]
[381562815,1756284650499,-165.24187,0.0002399,7]
[381562817,1756284650510,-165.24187,0.0002399,7]
[381562819,1756284650519,-165.24187,0.0002399,7]
[381562821,1756284650528,-1055.26907,0.0002399,7]
[381562823,1756284650538,-156.36125,0.0002399,7]
[381562825,1756284650547,-165.24187,0.0002399,7]
[381562827,1756284650557,-1055.26907,0.0002399,7]
[381562829,1756284650567,-151.0,0.0002399,7]
[381562831,1756284650576,-243.464186,0.0002399,7]
[381562833,1756284650585,-1055.26907,0.0002399,7]
[381562835,1756284650595,-1055.2690652,0.0002399,7]
[381562837,1756284650604,-243.464186,0.0002399,7]
[381562839,1756284650613,-243.464186,0.0002399,7]
[381562841,1756284650623,-243.464176,0.0002399,7]
[381562843,1756284650632,-151.0,0.0002399,7]
[381562845,1756284650641,-151.0,0.0002399,7]
[381562847,1756284650650,-1100.177715,0.0002399,7]
[381562849,1756284650659,-1100.177715,0.0002399,7]
[381562851,1756284650670,-1100.177715,0.0002399,7]
[381562853,1756284650679,-1100.177721,0.0002399,7]
[381562855,1756284650689,-197.051389,0.0002399,7]
[381562857,1756284650698,-197.051389,0.0002399,7]
[381562859,1756284650707,-197.051389,0.0002399,7]
[381562861,1756284650716,-197.051393,0.0002399,7]
[381562863,1756284650725,-151.0,0.0002399,7]
[381562866,1756284650735,-202.037811,0.0002399,7]
[381562868,1756284650745,-480.0,0.00023999,2]
[381562870,1756284650754,-806.88,0.00023999,2]
[381562872,1756284650763,-151.0,0.00024,9]
[381562874,1756284650772,-160.0,0.00024,7]
[381562876,1756284650782,-845.298898,0.00024,7]
[381562878,1756284650791,-160.0,0.00024,7]
[381562880,1756284650800,-10444.4,0.00024011,2]